bitfinex/quotes_SOLUSD_20251216
["timestamp","ask_amount","ask_price","bid_price","bid_amount"]
[1765899685409,0.67,128.44,128.39,8.49856244]
[1765899685583,13.90400732,128.44,128.39,8.49856244]
[1765899685905,13.90400732,128.44,128.4,0.71]
[1765899686088,13.90400732,128.44,128.4,8.49814888]
[1765899686294,13.90400732,128.44,128.41,8.80994492]
[1765899686590,13.23400732,128.44,128.41,8.80994492]
[1765899687108,13.90400732,128.44,128.41,8.80994492]
[1765899687305,21.69012514,128.44,128.41,8.80994492]
[1765899687710,7.78513486,128.45,128.41,8.49753386]
[1765899687934,21.68914218,128.45,128.41,7.78753386]
[1765899688218,7.7847796,128.46,128.42,0.71]
[1765899688421,7.7847796,128.46,128.43,8.80994492]
[1765899689223,7.78376478,128.48,128.44,8.80994492]
[1765899689422,8.45376478,128.48,128.44,8.80994492]
[1765899689603,7.78376478,128.48,128.44,17.30555025]
[1765899689927,21.0177721,128.48,128.45,0.71]
[1765899690224,41.14605354,128.48,128.44,9.51994492]
[1765899690383,0.67,128.45,128.43,8.80994492]
[1765899690810,22.42400732,128.46,128.43,8.80994492]
[1765899691212,13.90400732,128.44,128.41,8.80994492]
[1765899691422,21.68968253,128.45,128.41,8.80994492]
[1765899691717,0.67,128.44,128.41,8.80994492]
[1765899691884,13.90400732,128.42,128.36,0.71]
[1765899692087,13.90400732,128.41,128.37,8.80994492]
[1765899692289,13.90400732,128.41,128.37,9.51994492]
[1765899692729,0.67,128.39,128.37,8.80994492]
[1765899692926,22.42400732,128.4,128.37,8.80994492]
[1765899693404,30.21237215,128.4,128.37,8.80994492]
[1765899693805,16.97836483,128.4,128.37,8.80994492]
[1765899694008,30.21237215,128.4,128.37,8.80994492]
[1765899694210,13.94400732,128.39,128.37,8.80994492]
[1765899694398,13.94400732,128.38,128.34,8.80994492]
[1765899694722,21.75400732,128.37,128.34,16.60160525]
[1765899694928,21.75400732,128.37,128.35,7.791044]
[1765899694929,8.52,128.37,128.35,7.791044]
[1765899695095,22.46400732,128.37,128.33,7.79203354]
[1765899695294,22.46400732,128.37,128.33,17.27197846]
[1765899695495,25.15045953,128.37,128.33,17.27197846]
[1765899695805,8.13023391,128.36,128.33,17.27197846]
[1765899696000,8.84023391,128.35,128.33,8.80994492]
[1765899696419,8.13023391,128.36,128.33,8.80994492]
[1765899697014,25.15045953,128.37,128.33,17.27233971]
[1765899697194,0.71,128.36,128.33,16.60233971]
[1765899697707,25.15023104,128.37,128.33,16.60233971]
[1765899698019,25.15023104,128.37,128.33,8.80994492]
[1765899698020,8.84023391,128.36,128.33,8.80994492]
[1765899698619,8.13023391,128.34,128.33,8.80994492]
[1765899698789,35.78495233,128.37,128.33,8.80994492]
[1765899698994,16.30999713,128.37,128.33,9.47994492]
[1765899699220,8.13023391,128.36,128.33,8.80994492]
[1765899699424,8.84023391,128.36,128.33,8.80994492]
[1765899699720,8.13023391,128.36,128.33,8.46236601]
[1765899700223,8.13023391,128.34,128.31,8.80994492]
[1765899700520,8.13023391,128.34,128.31,9.47994492]
[1765899700725,8.13023391,128.34,128.31,8.80994492]
[1765899700928,8.13023391,128.34,128.31,17.27343841]
[1765899701109,8.13023391,128.35,128.32,8.46299802]
[1765899701504,8.84023391,128.35,128.32,7.79299802]
[1765899701701,8.13023391,128.35,128.32,7.79299802]
[1765899701919,8.13023391,128.35,128.32,8.46299802]
[1765899703214,15.92152246,128.35,128.32,7.79299802]
[1765899703417,8.13023391,128.35,128.32,7.79299802]
[1765899703606,8.13023391,128.36,128.32,7.79299802]
[1765899703807,24.44029427,128.37,128.33,0.67]
[1765899704323,16.65023391,128.37,128.35,8.80994492]
[1765899704730,8.52,128.37,128.35,8.80994492]
[1765899704917,102.5,128.38,128.35,8.80994492]
[1765899705231,102.5,128.38,128.35,17.27106365]
[1765899705430,8.13023391,128.39,128.36,0.67]
[1765899706697,16.67023391,128.4,128.36,0.67]
[1765899706902,16.67023391,128.4,128.37,0.67]
[1765899707233,8.13023391,128.39,128.36,17.27012599]
[1765899707402,16.32828438,128.4,128.33,60.13809456]
[1765899707403,8.84023391,128.38,128.34,9.47994492]
[1765899707803,8.13023391,128.38,128.34,9.47994492]
[1765899708027,8.13023391,128.38,128.35,0.67]
[1765899708326,8.13023391,128.37,128.34,8.80994492]
[1765899708527,8.13023391,128.35,128.34,8.80994492]
[1765899708707,8.13023391,128.35,128.33,8.80994492]
[1765899709226,8.13023391,128.35,128.33,16.60216935]
[1765899709425,8.13023391,128.35,128.33,8.80994492]
[1765899709933,0.71,128.33,128.28,0.2]
[1765899710119,8.84023391,128.32,128.28,8.6651239]
[1765899710431,8.13023391,128.3,128.28,9.00994492]
[1765899711604,8.54,128.31,128.3,8.80994492]
[1765899712111,8.54,128.31,128.29,9.47994492]
[1765899712824,8.13023391,128.32,128.29,9.47994492]
[1765899713014,8.84023391,128.32,128.29,8.80994492]
[1765899713213,8.13023391,128.31,128.28,9.00994492]
[1765899713430,8.13023391,128.31,128.28,9.67994492]
[1765899713823,16.63355737,128.32,128.28,17.47535942]
[1765899714417,8.13023391,128.31,128.28,9.00994492]
[1765899714729,8.13023391,128.31,128.28,9.67994492]
[1765899715419,8.84023391,128.29,128.28,0.2]
[1765899715730,16.63507372,128.29,128.28,0.2]
[1765899717736,25.17507372,128.29,128.28,0.2]
[1765899718508,24.46507372,128.29,128.28,0.2]
[1765899719038,25.17507372,128.29,128.28,0.2]
[1765899720538,0.71,128.25,128.19,7.80076752]
[1765899720726,8.13023391,128.23,128.2,9.47994492]
[1765899721549,8.13023391,128.21,128.15,8.00320274]
[1765899721716,8.13023391,128.25,128.15,0.2]
[1765899721717,8.13023391,128.17,128.15,0.2]
[1765899722049,15.93243936,128.17,128.15,0.2]
[1765899722250,8.13023391,128.16,128.15,0.2]
[1765899722446,8.84023391,128.16,128.15,0.2]
[1765899723943,16.64298047,128.16,128.15,0.2]
[1765899724354,15.93298047,128.16,128.15,0.2]
[1765899724528,16.63298047,128.16,128.15,0.2]
[1765899725051,8.83023391,128.16,128.15,0.2]
[1765899725254,16.67023391,128.16,128.15,0.2]
[1765899725751,17.37023391,128.16,128.15,0.2]
[1765899726053,33.30321438,128.16,128.15,0.2]
[1765899727441,0.7,128.15,128.12,0.2]
[1765899727633,8.83023391,128.13,128.12,0.2]
[1765899727834,24.47480739,128.13,128.12,0.2]
[1765899728137,0.7,128.2,128.13,0.72]
[1765899728458,0.7,128.19,128.16,8.80994492]
[1765899728654,8.13023391,128.17,128.14,0.72]
[1765899728950,8.13023391,128.16,128.13,8.80994492]
[1765899729153,8.13023391,128.16,128.13,9.52994492]
[1765899729460,16.67023391,128.17,128.13,9.52994492]
[1765899729952,8.13023391,128.17,128.13,17.3340499]
[1765899730156,8.13023391,128.18,128.15,8.80994492]
[1765899730349,8.13023391,128.18,128.15,9.52994492]
[1765899730556,8.13023391,128.18,128.15,0.72]
[1765899730745,24.47127282,128.19,128.15,0.72]
[1765899730933,8.13023391,128.18,128.15,0.72]
[1765899731133,8.13023391,128.17,128.14,9.52994492]
[1765899731546,8.13023391,128.18,128.14,9.52994492]
[1765899731832,8.13023391,128.17,128.14,9.52994492]
[1765899732046,15.93247553,128.17,128.14,9.52994492]
[1765899732625,7.80224162,128.17,128.14,8.80994492]
[1765899732847,8.13023391,128.16,128.13,8.80994492]
[1765899733157,8.83023391,128.14,128.13,8.80994492]
[1765899733329,8.13023391,128.14,128.12,0.2]
[1765899733755,8.13023391,128.15,128.13,0.72]
[1765899733929,8.13023391,128.14,128.12,0.2]
[1765899734554,16.342903,128.16,128.12,8.7251555]
[1765899734731,8.13023391,128.15,128.12,8.7251555]
[1765899735163,24.50029604,128.16,128.13,9.52994492]
[1765899735340,8.15749626,128.14,128.12,0.2]
[1765899735541,8.15749626,128.13,128.12,0.2]
[1765899735757,16.69749626,128.13,128.12,0.2]
[1765899736058,24.50206974,128.13,128.12,0.2]
[1765899736960,16.69749626,128.13,128.12,0.2]
[1765899737157,16.69749626,128.13,128.12,0.92]
[1765899737369,16.69749626,128.13,128.12,9.00994492]
[1765899737858,8.54,128.13,128.12,9.00994492]
[1765899738047,8.54,128.13,128.12,17.53512756]
[1765899738243,8.54,128.13,128.12,9.00994492]
[1765899738449,8.54,128.13,128.12,17.53512756]
[1765899738971,8.54,128.15,128.12,16.81504862]
[1765899739153,8.54,128.15,128.13,9.52994492]
[1765899739360,4.7802676,128.18,128.14,0.72]
[1765899739361,8.15749626,128.17,128.14,0.72]
[1765899739574,12.57971951,128.2,128.17,8.80994492]
[1765899739760,16.69749626,128.19,128.17,8.80994492]
[1765899739948,8.15749626,128.18,128.17,8.80994492]
[1765899740149,8.15749626,128.18,128.15,9.52994492]
[1765899740471,8.15749626,128.18,128.15,17.33321617]
[1765899740769,8.85749626,128.16,128.13,8.80994492]
[1765899740951,8.15749626,128.15,128.13,9.52994492]
[1765899741153,8.15749626,128.15,128.13,8.80994492]
[1765899741353,8.15749626,128.14,128.12,0.2]
[1765899741554,8.15749626,128.13,128.12,0.2]
[1765899741951,17.39749626,128.13,128.12,0.2]
[1765899742383,25.20206974,128.13,128.12,0.2]
[1765899744150,16.34457348,128.13,128.12,0.92]
[1765899744355,8.54,128.13,128.12,9.00994492]
[1765899745471,16.34457348,128.13,128.12,9.00994492]
[1765899745754,25.20206974,128.13,128.12,0.2]
[1765899747280,16.34457348,128.13,128.12,0.2]
[1765899747459,24.50206974,128.13,128.12,0.2]
[1765899747788,16.69749626,128.13,128.12,0.2]
[1765899747990,8.54,128.13,128.12,0.2]
[1765899748286,8.54,128.13,128.12,8.72518264]
[1765899748506,15.96113651,128.15,128.13,8.80994492]
[1765899748507,8.15749626,128.15,128.13,8.80994492]
[1765899748792,17.39749626,128.14,128.12,0.2]
[1765899748961,16.69749626,128.13,128.12,0.2]
[1765899751394,7.79970361,128.21,128.17,0.72]
[1765899751595,28.57555926,128.22,128.18,8.80994492]
[1765899751775,15.95679923,128.22,128.19,0.72]
[1765899752101,8.15749626,128.2,128.17,0.72]
[1765899752274,0.7,128.21,128.18,8.80994492]
[1765899752474,16.69749626,128.2,128.18,8.80994492]
[1765899753584,8.54,128.2,128.18,7.80140545]
[1765899753794,8.54,128.2,128.18,9.50994492]
[1765899754183,15.9568096,128.22,128.19,9.52994492]
[1765899754382,19.49530354,128.24,128.2,0.72]
[1765899754383,24.49613842,128.23,128.2,0.72]
[1765899754585,8.54,128.23,128.2,0.72]
[1765899755107,8.54,128.25,128.2,8.15749626]
[1765899755400,13.23142932,128.27,128.24,0.72]
[1765899755778,13.23142932,128.28,128.24,0.72]
[1765899756402,8.64,128.29,128.24,0.72]
[1765899756784,8.64,128.29,128.26,0.72]
[1765899756785,0.1,128.29,128.26,0.72]
[1765899756990,0.1,128.29,128.27,0.72]
[1765899757181,0.1,128.29,128.28,8.80994492]
[1765899757594,13.33142932,128.29,128.25,8.5170506]
[1765899757779,13.33142932,128.29,128.27,8.80994492]
[1765899757981,0.1,128.29,128.27,0.72]
[1765899758892,0.1,128.29,128.28,17.32539237]
[1765899759088,0.1,128.29,128.28,9.52994492]
[1765899759284,0.1,128.29,128.28,8.80994492]
[1765899759995,0.1,128.29,128.28,17.32539237]
[1765899760304,13.33142932,128.29,128.28,8.80994492]
[1765899760528,14.05142932,128.29,128.24,8.51765594]
[1765899760811,13.23142932,128.28,128.25,8.80994492]
[1765899761099,13.23142932,128.27,128.24,8.80994492]
[1765899761302,8.54,128.28,128.24,8.80994492]
[1765899761303,13.23142932,128.26,128.24,8.80994492]
[1765899761480,21.02868032,128.26,128.24,8.80994492]
[1765899761675,21.02868032,128.26,128.23,8.80994492]
[1765899761676,13.23142932,128.25,128.23,8.80994492]
[1765899762082,21.77142932,128.25,128.23,8.80994492]
[1765899762283,13.23142932,128.24,128.22,8.80994492]
[1765899762482,13.23142932,128.23,128.21,8.80994492]
[1765899762685,13.95142932,128.24,128.21,8.80994492]
[1765899762902,13.23142932,128.24,128.21,8.80994492]
[1765899763500,8.54,128.25,128.22,7.79907988]
[1765899763706,8.54,128.25,128.23,0.72]
[1765899764013,8.54,128.25,128.22,7.79907988]
[1765899764189,8.54,128.25,128.22,8.51907988]
[1765899764387,29.56878022,128.25,128.23,0.72]
[1765899764590,30.28878022,128.25,128.21,16.60939159]
[1765899764790,13.23142932,128.24,128.21,17.32939159]
[1765899765194,29.56878022,128.25,128.22,8.51906173]
[1765899765510,8.54,128.25,128.22,7.79906173]
[1765899765714,8.54,128.25,128.23,0.72]
[1765899765911,16.33749071,128.25,128.21,8.80994492]
[1765899766092,29.56892003,128.25,128.22,8.51903778]
[1765899766294,29.56892003,128.25,128.22,0.72]
[1765899767517,13.95142932,128.24,128.21,8.80994492]
[1765899767712,13.23142932,128.24,128.21,8.80994492]
[1765899768013,13.23142932,128.24,128.21,17.32959678]
[1765899768313,13.23142932,128.24,128.21,17.32957693]
[1765899769113,16.33638935,128.27,128.22,0.72]
[1765899769305,13.23142932,128.24,128.21,17.32957693]
[1765899770610,21.02913221,128.25,128.22,0.72]
[1765899771716,29.56913221,128.25,128.22,0.72]
[1765899772012,29.56913221,128.25,128.21,17.32957693]
[1765899772317,8.54,128.25,128.23,9.52994492]
[1765899772898,19.49013799,128.27,128.24,9.52994492]
[1765899772899,7.79625312,128.27,128.24,9.52994492]
[1765899773097,29.56768244,128.27,128.24,9.52994492]
[1765899773698,8.54,128.27,128.25,9.52994492]
[1765899773893,0.1,128.29,128.25,8.80994492]
[1765899774306,0.1,128.29,128.27,9.52994492]
[1765899774814,0.1,128.29,128.28,9.52994492]
[1765899775203,0.1,128.29,128.28,17.32539237]
[1765899776814,0.1,128.29,128.28,8.80994492]
[1765899777327,13.33142932,128.29,128.28,8.80994492]
[1765899777710,14.05142932,128.29,128.28,8.80994492]
[1765899778128,13.33142932,128.29,128.28,8.80994492]
[1765899778813,0.1,128.29,128.28,8.80994492]
[1765899779213,13.33142932,128.29,128.28,8.80994492]
[1765899779524,21.12626913,128.29,128.28,8.80994492]
[1765899780224,13.33142932,128.29,128.28,8.80994492]
[1765899780521,0.1,128.29,128.28,8.80994492]
[1765899781106,13.33142932,128.29,128.28,8.80994492]
[1765899781314,14.05142932,128.29,128.28,8.80994492]
[1765899781514,14.05142932,128.29,128.24,8.51760001]
[1765899781515,0.72,128.28,128.24,8.51760001]
[1765899781718,13.23142932,128.28,128.25,16.60719959]
[1765899782112,102.6,128.29,128.26,0.72]
[1765899782317,0.1,128.29,128.28,0.72]
[1765899782518,0.1,128.29,128.28,17.32539237]
[1765899782733,0.1,128.29,128.28,16.60539237]
[1765899782929,0.1,128.29,128.28,17.32539237]
[1765899783732,8.54,128.34,128.31,8.80994492]
[1765899783933,21.77142932,128.34,128.31,8.80994492]
[1765899784109,22.45142932,128.34,128.31,8.80994492]
[1765899784537,13.23142932,128.33,128.31,8.80994492]
[1765899784711,0.68,128.31,128.28,8.80994492]
[1765899784911,13.91142932,128.31,128.28,8.80994492]
[1765899785111,13.23142932,128.3,128.27,9.50994492]
[1765899785312,13.23142932,128.3,128.27,17.30587693]
[1765899785618,21.77142932,128.31,128.28,0.7]
[1765899785824,13.23142932,128.29,128.24,8.49739976]
[1765899786029,13.91142932,128.28,128.25,8.80994492]
[1765899786230,13.23142932,128.27,128.25,8.80994492]
[1765899786436,13.23142932,128.26,128.21,9.24]
[1765899786640,13.23142932,128.24,128.2,17.31025693]
[1765899786845,13.23142932,128.24,128.22,8.80994492]
[1765899787449,7.79649748,128.27,128.22,0.7]
[1765899787746,21.0279268,128.27,128.22,0.7]
[1765899787947,7.79649748,128.27,128.22,0.7]
[1765899788154,8.54,128.28,128.22,0.7]
[1765899788450,29.56715327,128.28,128.25,8.80994492]
[1765899788655,0.68,128.27,128.25,8.80994492]
[1765899788831,13.91142932,128.27,128.23,9.50994492]
[1765899789256,16.33572395,128.28,128.23,16.60808643]
[1765899789569,13.23142932,128.27,128.24,0.7]
[1765899789736,17.01572395,128.28,128.24,8.49775119]
[1765899789940,29.56715327,128.28,128.25,16.60719397]
[1765899790140,21.77142932,128.28,128.25,16.60719397]
[1765899790342,21.77142932,128.28,128.25,17.30719397]
[1765899790560,29.56593046,128.3,128.25,16.60719397]
[1765899790781,29.56593046,128.3,128.27,8.80994492]
[1765899791080,29.56568763,128.3,128.27,9.50994492]
[1765899791238,13.23142932,128.3,128.27,9.50994492]
[1765899791437,13.23142932,128.3,128.27,8.80994492]
[1765899791650,13.23142932,128.3,128.27,9.50994492]
[1765899792064,13.23142932,128.28,128.25,16.33702076]
[1765899792253,13.23142932,128.29,128.26,9.50994492]
[1765899792474,13.23142932,128.28,128.26,8.80994492]
[1765899792671,13.23142932,128.27,128.26,8.80994492]
[1765899792978,13.23142932,128.27,128.25,16.60720139]
[1765899793284,13.23142932,128.26,128.25,8.80994492]
[1765899793782,13.23142932,128.26,128.23,8.80994492]
[1765899793974,13.23142932,128.26,128.23,16.60840443]
[1765899794173,13.23142932,128.26,128.23,17.30840443]
[1765899794466,21.70752632,128.27,128.23,17.30840443]
[1765899794869,8.54,128.29,128.24,0.7]
[1765899795087,13.23142932,128.28,128.24,0.7]
[1765899795951,29.56654108,128.29,128.25,8.49727095]
[1765899796152,13.91142932,128.28,128.24,7.79770249]
[1765899796378,13.23142932,128.27,128.24,8.49770249]
[1765899797176,13.23142932,128.27,128.25,0.7]
[1765899797777,13.23142932,128.27,128.24,8.49770249]
[1765899797975,13.23142932,128.26,128.23,17.30802276]
[1765899798185,13.23142932,128.26,128.24,7.79782052]
[1765899798373,13.23142932,128.27,128.24,8.49782052]
[1765899798790,13.23142932,128.27,128.24,7.79782052]
[1765899799008,13.91142932,128.27,128.24,7.79782052]
[1765899799296,13.23142932,128.25,128.23,8.80994492]
[1765899799469,13.23142932,128.25,128.23,16.60839922]
[1765899799669,13.91142932,128.26,128.23,8.80994492]
[1765899799883,13.23142932,128.25,128.23,8.80994492]
[1765899800168,0.68,128.26,128.2,13.7470912]
[1765899800169,13.23142932,128.24,128.2,13.7470912]
[1765899800513,13.23142932,128.25,128.23,8.80994492]
[1765899800795,13.23142932,128.24,128.21,7.79921382]
[1765899800976,13.23142932,128.24,128.22,16.60902832]
[1765899801364,21.0287319,128.25,128.21,16.60937501]
[1765899801576,13.23142932,128.25,128.22,0.7]
[1765899801774,29.56826395,128.26,128.23,9.50994492]
[1765899802272,29.56826395,128.26,128.23,8.80994492]
[1765899802273,30.24826395,128.26,128.23,8.80994492]
[1765899802474,21.77142932,128.26,128.24,0.7]
[1765899802674,13.23142932,128.27,128.25,9.50994492]
[1765899802870,13.23142932,128.27,128.22,48.8838358]
[1765899802871,13.91142932,128.27,128.23,9.50994492]
[1765899803101,13.23142932,128.26,128.23,9.50994492]
[1765899803406,13.23142932,128.26,128.25,8.80994492]
[1765899804115,13.23142932,128.26,128.24,16.6076326]
[1765899804282,13.23142932,128.26,128.24,17.3076326]
[1765899804479,13.0470912,128.32,128.23,19.49543662]
[1765899804480,13.23142932,128.3,128.27,0.7]
[1765899804684,21.77142932,128.3,128.27,0.7]
[1765899804878,21.77142932,128.3,128.26,8.80994492]
[1765899804879,13.91142932,128.28,128.26,8.80994492]
[1765899805078,13.23142932,128.27,128.25,8.80994492]
[1765899805284,13.23142932,128.26,128.25,8.80994492]
[1765899805484,13.23142932,128.26,128.24,8.80994492]
[1765899805709,21.70810736,128.26,128.23,8.80994492]
[1765899805899,21.70810736,128.26,128.23,16.60836271]
[1765899806102,21.70810736,128.26,128.23,17.30836271]
[1765899806103,21.02810736,128.26,128.23,17.30836271]
[1765899806406,21.02813122,128.26,128.23,17.30836271]
[1765899806610,0.68,128.25,128.21,13.0470912]
[1765899806796,7.7967019,128.26,128.21,13.0470912]
[1765899806797,13.23142932,128.23,128.22,8.80994492]
[1765899807112,13.23142932,128.23,128.21,8.80994492]
[1765899807307,13.23142932,128.23,128.21,9.50994492]
[1765899807511,13.23859792,128.24,128.22,0.7]
[1765899807883,13.23859792,128.24,128.21,17.30935583]
[1765899808285,13.23859792,128.25,128.21,17.30935583]
[1765899808590,13.23859792,128.24,128.22,0.7]
[1765899808797,13.23859792,128.23,128.21,16.60935583]
[1765899809108,13.23859792,128.24,128.21,17.30935583]
[1765899809510,13.91859792,128.22,128.19,7.80061973]
[1765899809705,13.23859792,128.21,128.2,8.80994492]
[1765899810095,13.23859792,128.21,128.19,8.80994492]
[1765899810408,13.91859792,128.21,128.19,8.80994492]
[1765899810613,13.23859792,128.2,128.18,8.80994492]
[1765899810795,8.54,128.23,128.19,0.7]
[1765899810998,21.77859792,128.23,128.19,0.7]
[1765899811210,30.25728409,128.23,128.19,0.7]
[1765899811393,13.91859792,128.21,128.18,16.6112952]
[1765899811596,13.23859792,128.21,128.18,17.3112952]
[1765899811988,0.68,128.22,128.18,16.6112952]
[1765899812331,13.23859792,128.22,128.19,0.7]
[1765899812534,13.23859792,128.23,128.2,8.80994492]
[1765899812734,13.23859792,128.25,128.22,0.7]
[1765899814019,13.89859792,128.25,128.21,36.82830236]
[1765899814214,13.23859792,128.25,128.22,0.71]
[1765899814815,21.03594895,128.25,128.21,36.10830236]
[1765899815011,13.23859792,128.24,128.21,17.31904334]
[1765899815404,8.14648647,128.24,128.21,17.31904334]
[1765899815916,8.14648647,128.24,128.21,16.60904334]
[1765899816100,8.14648647,128.24,128.21,17.31904334]
[1765899816298,8.14648647,128.25,128.22,0.71]
[1765899816819,16.68648647,128.26,128.22,0.71]
[1765899817016,16.68648647,128.26,128.24,8.80994492]
[1765899817713,8.81648647,128.25,128.23,8.80994492]
[1765899817912,8.14648647,128.24,128.23,8.80994492]
[1765899818097,8.81648647,128.25,128.23,8.80994492]
[1765899818606,8.14648647,128.25,128.23,8.80994492]
[1765899819317,8.81648647,128.25,128.23,8.80994492]
[1765899819819,8.14648647,128.25,128.23,7.79834295]
[1765899820027,8.54,128.26,128.24,0.71]
[1765899820195,16.61265028,128.27,128.25,8.80994492]
[1765899820520,8.14648647,128.26,128.25,8.80994492]
[1765899820918,16.61314949,128.26,128.22,8.50881381]
[1765899821105,8.81648647,128.25,128.22,8.50881381]
[1765899821306,8.81648647,128.25,128.24,8.80994492]
[1765899821509,8.14648647,128.26,128.23,9.51994492]
[1765899821705,8.14648647,128.26,128.23,17.31785009]
[1765899822234,16.61284922,128.27,128.24,7.79785413]
[1765899822538,141.47063213,128.31,128.26,8.80994492]
[1765899822539,102.5,128.31,128.26,8.80994492]
[1765899822862,8.14648647,128.3,128.27,0.71]
[1765899823004,16.61108095,128.3,128.26,17.31632428]
[1765899823524,8.14648647,128.27,128.25,16.60718002]
[1765899823720,8.14648647,128.27,128.25,8.80994492]
[1765899823901,8.14648647,128.27,128.25,16.60711209]
[1765899824523,8.14648647,128.28,128.26,7.79666302]
[1765899824824,8.81648647,128.29,128.26,7.79666302]
[1765899825032,16.61140984,128.29,128.25,8.50727095]
[1765899825530,8.81648647,128.28,128.25,8.50727095]
[1765899825726,8.14648647,128.28,128.25,8.50727095]
[1765899826525,8.14648647,128.29,128.27,0.71]
[1765899826749,8.14648647,128.3,128.28,8.80994492]
[1765899826928,8.14648647,128.32,128.29,0.71]
[1765899827129,8.81648647,128.32,128.28,0.71]
[1765899828223,24.47909941,128.33,128.3,8.80994492]
[1765899828423,25.14909941,128.33,128.3,8.80994492]
[1765899829257,8.14648647,128.32,128.26,28.0312255]
[1765899829429,8.81648647,128.31,128.27,17.31566641]
[1765899830023,8.14648647,128.3,128.27,16.60566641]
[1765899830227,8.81648647,128.3,128.27,16.60566641]
[1765899830426,8.81648647,128.29,128.26,7.79645795]
[1765899830728,8.81648647,128.29,128.27,8.80994492]
[1765899831360,8.14648647,128.29,128.27,8.80994492]
[1765899831559,16.68648647,128.3,128.27,7.79596676]
[1765899831859,25.14959619,128.32,128.29,8.80994492]
[1765899832060,8.14648647,128.31,128.29,8.80994492]
[1765899833444,15.94027406,128.31,128.28,8.80994492]
[1765899833645,0.67,128.3,128.28,8.80994492]
[1765899833848,8.81648647,128.29,128.26,8.80994492]
[1765899834160,8.81648647,128.29,128.26,16.60657319]
[1765899834161,17.35648647,128.29,128.26,16.60657319]
[1765899834330,8.81648647,128.27,128.23,9.51994492]
[1765899834534,8.81648647,128.25,128.23,8.80994492]
[1765899834728,8.81648647,128.25,128.22,7.79878629]
[1765899834955,0.67,128.22,128.21,13.0470912]
[1765899835136,25.15575459,128.22,128.15,0.71]
[1765899835345,25.15575459,128.22,128.17,0.71]
[1765899835544,8.81648647,128.21,128.18,8.80994492]
[1765899835747,8.14648647,128.21,128.18,8.80994492]
[1765899835936,8.81648647,128.21,128.17,0.71]
[1765899836133,8.14648647,128.2,128.15,8.51335544]
[1765899836347,17.35648647,128.19,128.16,8.80994492]
[1765899836552,0.67,128.17,128.15,8.80994492]
[1765899836741,8.81648647,128.17,128.14,7.80387551]
[1765899836938,8.81648647,128.17,128.15,8.80994492]
[1765899837338,8.14648647,128.17,128.15,8.80994492]
[1765899838567,16.61867067,128.17,128.13,13.7570912]
[1765899838769,8.14648647,128.16,128.14,8.80994492]
[1765899839157,8.14648647,128.16,128.13,8.80994492]
[1765899839362,8.81648647,128.16,128.13,16.61441406]
[1765899840137,16.61929173,128.16,128.13,8.80994492]
[1765899840362,0.67,128.13,128.12,9.00994492]
[1765899840675,16.68648647,128.14,128.12,0.2]
[1765899840961,7.80259397,128.17,128.12,0.2]
[1765899841151,25.15908044,128.17,128.14,8.80994492]
[1765899841461,8.81648647,128.16,128.13,8.80994492]
[1765899841879,8.14648647,128.15,128.13,8.80994492]
[1765899842780,8.54,128.17,128.12,9.00994492]
[1765899842957,17.35648647,128.19,128.15,9.51994492]
[1765899843292,17.35648647,128.19,128.13,13.0470912]
[1765899843293,8.14648647,128.17,128.13,13.0470912]
[1765899843483,8.81648647,128.17,128.14,8.80994492]
[1765899843653,8.80648647,128.17,128.14,8.80994492]
[1765899843995,8.14648647,128.17,128.14,8.80994492]
[1765899844280,17.34648647,128.16,128.13,8.80994492]
[1765899844656,8.14648647,128.15,128.13,8.80994492]
[1765899844876,17.34648647,128.16,128.13,8.80994492]
[1765899845054,0.66,128.13,128.12,0.2]
[1765899845259,17.34648647,128.13,128.12,0.2]
[1765899845456,25.15105995,128.13,128.12,0.2]
[1765899845761,8.54,128.13,128.12,0.2]
[1765899845950,24.49105995,128.13,128.12,0.2]
[1765899846157,17.34648647,128.13,128.12,0.2]
[1765899846376,25.15105995,128.13,128.12,0.2]
[1765899847167,0.66,128.16,128.12,0.88]
[1765899847375,15.94987814,128.15,128.12,0.2]
[1765899847976,8.54,128.16,128.14,0.68]
[1765899848159,8.54,128.16,128.13,7.80457348]
[1765899848357,8.54,128.16,128.13,8.48457348]
[1765899848871,8.14648647,128.19,128.16,8.80994492]
[1765899849182,8.14648647,128.19,128.14,8.80994492]
[1765899849183,0.66,128.18,128.14,9.48994492]
[1765899849568,15.94774154,128.19,128.16,8.80994492]
[1765899849767,16.68648647,128.2,128.16,8.80994492]
[1765899850073,16.68648647,128.2,128.16,9.48994492]